[Event "Baku Open 2024"]
[Site "Baku"]
[Date "2024.06.29"]
[Round "1.11"]
[White "Saravana, Krishnan P."]
[Black "Gokerkan, Cem Kaan"]
[Result "1-0"]
[ECO "B81"]
[WhiteElo "2236"]
[BlackElo "2512"]
[Annotator "TA"]
[PlyCount "69"]
[EventDate "2024.06.29"]
[EventType "swiss"]
[EventCountry "AZE"]
[SourceTitle "playchess.com"]
[Source "ChessBase"]
[SourceQuality "1"]
[TimeControl "5400+30"]

{[%evp 21,68,0,0,0,0,-228,-237,-410,-145,-190,-187,-229,-217,-186,365,363,311,208,221,0,323,314,313,325,552,304,640,634,1008,907,1145,1143,5293,5185,2059,2364,1328,612,592,322,331,285,298,298,29996,29997,29998,29999,29999]} 1. e4 {[%emt 0:00:04]} c5 {[%emt 0:00:06]} 2. Nf3 {[%emt 0:00:20]} d6 {[%emt 0:00:06]} 3. d4 {[%emt 0:00:35]} cxd4 {[%emt 0:00:07]} 4. Nxd4 {[%emt 0:00:07]} Nf6 {[%emt 0:00:05]} 5. Nc3 {[%emt 0:00:55]} a6 {[%emt 0:00:33]} 6. Be3 {[%emt 0:01:13]} e6 {[%emt 0:05:46][%cal Be7e6,Be6e5][%mdl 32]} 7. g4 {[%emt 0:01:55]} e5 {[%emt 0:03:04]} 8. Nf5 {[%emt 0:01:42]} g6 {[%emt 0:01:48]} 9. g5 {[%emt 0:00:44]} gxf5 {[%emt 0:02:20]} 10. exf5 {[%emt 0:05:40]} d5 {[%emt 0:10:47][%cal Bd6d5,Bd5d4,Bd4c3][%mdl 32]} 11. Qf3 {[%emt 0:02:17]} d4 {[%emt 0:05:49]} 12. O-O-O {[%emt 0:03:53] Hoping for Bxd4.} Nbd7 {[%emt 0:06:06]} (12... Nfd7 13. Bxd4 exd4 14. Re1+ Be7 15. Nd5 (15. f6 Nc6 $11)) 13. gxf6 $2 {[%emt 0:05:55]} (13. Bc4 $11 dxe3 14. gxf6 Qxf6 15. fxe3 (15. Qxe3 $2 Bh6 $19)) 13... dxc3 $19 {[%emt 0:00:41]} (13... dxe3 14. Qxe3 Qb6 (14... Qxf6 15. Nd5 $14) 15. Qe2 $11) 14. Bg5 $2 {[%emt 0:08:08]} (14. Kb1 Qc7 (14... Qxf6 15. Bc4 $17) 15. Re1) 14... h6 $2 {[%emt 0:11:51]} (14... cxb2+ $19 15. Kb1 Qc7) 15. Bc4 $17 {[%emt 0:06:30][%cal Oc4f7] [#] Bxf7+! would kill now.} Qb6 $1 {[%emt 0:00:47][%csl Gc3][%cal Rb6b2]} (15... hxg5 16. Bxf7+ Kxf7 17. Qd5+ Kxf6 18. Qe6+ Kg7 19. Qg6#) 16. Bxf7+ {[%emt 0:02:14]} Kd8 $1 {[%emt 0:00:03][%csl Gc3][%cal Rb6b2]} 17. Qxc3 {[%emt 0:04:41] Be3 is the strong threat.} Qc5 {[%emt 0:12:42][%mdl 8192]} (17... hxg5 $19 18. Qxe5 Qc5 (18... Qxf2 $2 19. Kb1 $19)) 18. Qh3 $18 {[%emt 0:04:57]} Kc7 {[%emt 0:00:32]} 19. Rd3 {[%emt 0:03:06] Threatens to win with Rc3.} Qb6 {[%emt 0:04:31][%cal Od7c5]} 20. Be6 $2 {[%emt 0:14:36]} ({White should play} 20. Rc3+ $18 Nc5 21. Be3) 20... Bb4 $2 {[%emt 0:14:03][%mdl 8192]} (20... Nc5 $11 {and Black has nothing to worry.} 21. Rc3 hxg5 22. Qxh8 Bxe6 23. fxe6 Qxe6) 21. Be3 {[%emt 0:16:05]} (21. Bxh6 Nc5 22. Rg3 Bxe6 (22... Nxe6 23. fxe6 Bxe6 24. Rg7+ Kb8 25. Be3 $19) 23. fxe6 Nxe6 $17) 21... Nc5 {[%emt 0:01:42]} 22. Rd5 {[%emt 0:06:03]} Qc6 {[%emt 0:00:25]} (22... Bxe6 23. fxe6 Qc6) 23. Rhd1 {[%emt 0:06:19]} Nxe6 $2 {[%emt 0:00:23]} (23... Bxe6 24. fxe6 Rad8 25. Rxd8 (25. Rxe5 $2 Rxd1+ 26. Kxd1 Qd6+ 27. Ke2 Qxe5 $19) 25... Rxd8) 24. Qg3 {[%emt 0:00:25]} Kb8 {[%emt 0:14:22]} 25. fxe6 {[%emt 0:00:37]} Qxe6 {[%emt 0:00:15]} 26. f7 {[%emt 0:01:39]} (26. Qxe5+ Qxe5 27. Rxe5 b6 $18) 26... Rf8 {[%emt 0:00:50]} 27. Rxe5 {[%emt 0:01:47]} (27. Qxe5+ Qxe5 28. Rxe5 Rxf7 $14) 27... Qg4 {[%emt 0:00:35] Black is weak on the dark squares} 28. Qxg4 {[%emt 0:00:59]} (28. Bxh6 Qxg3 (28... Rxf7 $2 29. Qxg4 Bxg4 30. Rd4 $18) 29. hxg3 Rxf7 $11) 28... Bxg4 {[%emt 0:00:02]} 29. Rd4 {[%emt 0:00:27]} (29. Bb6 $142 Rc8 30. Rd4) 29... Bc8 {[%emt 0:01:15]} 30. Rxb4 {[%emt 0:00:32]} Rxf7 {[%emt 0:00:00]} 31. Bb6 {[%emt 0:00:40] Black must now prevent Re8.} (31. Bxh6 b5 32. Be3 Bd7 $18) 31... a5 {[%emt 0:00:04]} 32. Rc4 {[%emt 0:00:15][%cal Oe5e8] Intending Re8! and mate.} ({But not} 32. Rxa5 Rxa5 33. Bxa5 Rxf2 $18) (32. Rh4 Ra6 $18) 32... Ra6 $2 {[%emt 0:00:42] [#]} (32... Rf6 $18 33. Bc7+ (33. Bxa5 Be6 $18) 33... Ka7 34. Rxa5+ (34. Bxa5 Bd7 $18) 34... Ra6 35. Rxa6+ bxa6) 33. Re8 $1 {[%emt 0:00:15][%csl Gc4][%cal Re8c8] White mates.} ({Less strong is} 33. Bxa5 Be6 $18) 33... Rxb6 {[%emt 0:00:03]} 34. Rcxc8+ {[%emt 0:00:05]} Ka7 {[%emt 0:00:02]} 35. Ra8# {[%emt 0:00:06] Weighted Error Value: White=0.92/Black=0.93.  Loses game:     	White=1     	Black=1      Missed win:     	White=1     	Black=2      Mistake:       	White=1     	Black=3      Inaccurate:     	White=2     	Black=1      OK:         	White=3     	Black=1      Best:        	White=4     	Black=2      Strong:       	White=1     	Black=2} 1-0

[Event "Baku Open 2024"]
[Site "Baku"]
[Date "2024.06.29"]
[Round "1.12"]
[White "Zhalmakhanov, Ramazan"]
[Black "Wagh Suyog"]
[Result "1-0"]
[ECO "B12"]
[WhiteElo "2505"]
[BlackElo "2230"]
[Annotator "TA"]
[PlyCount "109"]
[EventDate "2024.06.29"]
[EventType "swiss"]
[EventCountry "AZE"]
[SourceTitle "playchess.com"]
[Source "ChessBase"]
[SourceQuality "1"]
[TimeControl "5400+30"]

{[%evp 9,109,0,0,0,5,0,6,0,0,-1,14,0,-8,-27,-23,-10,-12,-37,3,0,32,0,0,-6,-18,-7,0,-10,0,-7,0,-18,0,0,0,0,0,-14,8,8,38,11,25,27,24,0,0,0,0,0,0,0,22,22,25,22,22,22,22,22,22,24,24,24,25,31,62,33,47,41,40,52,76,35,128,119,342,118,326,317,759,695,1010,1033,963,790,29968,29970,29968,29967,29977,29979,29979,29980,29980,29981,29980,29981,29982,29983,29986,29987]} 1. e4 {[%emt 0:00:03]} c6 {[%emt 0:00:46]} 2. d4 {[%emt 0:01:42]} d5 {[%emt 0:01:01]} 3. f3 {[%emt 0:00:58]} Qb6 {[%emt 0:06:37]} 4. Nc3 {[%emt 0:08:43]} dxe4 {[%emt 0:00:40]} 5. fxe4 {[%emt 0:07:07]} e5 $1 {[%emt 0:00:18]} 6. Nf3 {[%emt 0:12:33]} exd4 {[%emt 0:00:19]} 7. Qxd4 {[%emt 0:00:15]} Qxd4 {[%emt 0:16:28]} 8. Nxd4 {[%emt 0:00:36] The position is equal.} Bc5 {[%emt 0:08:55]} 9. Nf3 {[%emt 0:16:51]} Be6 {[%emt 0:07:49] Repels Bc4} 10. Ng5 {[%emt 0:04:30]} Nd7 {[%emt 0:01:44]} 11. Bf4 {[%emt 0:06:23]} Ngf6 {[%emt 0:14:04]} 12. Nxe6 {[%emt 0:11:45]} fxe6 {[%emt 0:01:25]} 13. Bc4 {[%emt 0:00:40]} Nh5 {[%emt 0:06:54]} 14. Bd2 {[%emt 0:11:28]} Ke7 {[%emt 0:00:44]} 15. O-O-O {[%emt 0:00:31][%cal Oe4e5] e5! would now be deadly.} (15. e5 $5 Nxe5 16. Bb3 $11) 15... Ne5 {[%emt 0:09:59]} 16. Be2 {[%emt 0:02:02]} Nf6 {[%emt 0:00:17]} 17. Bf4 {[%emt 0:00:30]} Nfd7 {[%emt 0:03:26]} 18. h4 {[%emt 0:02:25]} h6 {[%emt 0:07:31]} 19. g3 {[%emt 0:02:58]} b5 {[%emt 0:02:00]} 20. h5 {[%emt 0:01:06]} Rhf8 {[%emt 0:00:31]} 21. Nb1 {[%emt 0:01:04]} a5 {[%emt 0:05:04]} 22. Nd2 {[%emt 0:01:20]} a4 {[%emt 0:00:31]} 23. c3 {[%emt 0:00:15]} Rf7 {[%emt 0:01:03]} 24. Kc2 {[%emt 0:00:57]} Raf8 {[%emt 0:00:31]} 25. b3 {[%emt 0:01:43]} axb3+ {[%emt 0:02:07]} 26. axb3 {[%emt 0:01:00]} Ra8 {[%emt 0:00:05]} 27. Ra1 {[%emt 0:00:16]} (27. b4 {looks sharper.} Bb6 28. Kb3 Ra7 29. Ra1) 27... Rff8 {[%emt 0:00:15]} 28. b4 {[%emt 0:00:28]} Bb6 {[%emt 0:02:46]} 29. Nb3 {[%emt 0:00:18]} Rxa1 {[%emt 0:00:26]} 30. Rxa1 {[%emt 0:00:02]} g5 {[%emt 0:00:13]} 31. hxg6 {[%emt 0:01:07]} Nxg6 {[%emt 0:00:01]} 32. Bxh6 {[%emt 0:00:20]} Rf2 {[%emt 0:00:04]} 33. Bg5+ $1 {[%emt 0:00:30]} Kd6 {[%emt 0:00:57]} 34. Rd1+ {[%emt 0:00:59]} Kc7 {[%emt 0:00:05]} 35. Rd2 {[%emt 0:00:06] Bh5 is the strong threat.} Rg2 $1 {[%emt 0:01:22]} 36. Bg4 {[%emt 0:03:15][%csl LRe6,LRg2]} Rxg3 {[%emt 0:00:21]} 37. Bxe6 {[%emt 0:00:03]} Nde5 {[%emt 0:00:17]} 38. Bf6 {[%emt 0:01:24]} Be3 {[%emt 0:00:31]} 39. Rh2 {[%emt 0:00:38]} Kd6 {[%emt 0:01:19]} 40. Bf5 $36 {[%emt 0:00:23][%cal Ob3c5][%mdl 2048] White has some pressure. A strong pair of Bishops.} Nc4 {[%emt 0:00:26]} 41. Nc5 {[%emt 0:01:13][%cal Oe4e5] [#] And now e5+! would win.} Bxc5 {[%emt 0:00:36]} ({Better is} 41... Nge5 $14) 42. bxc5+ $16 {[%emt 0:00:02]} Kxc5 $2 {[%emt 0:00:23]} (42... Kc7 $16 {is a better defense.}) 43. Bd4+ $18 {[%emt 0:00:26]} Kd6 {[%emt 0:00:04]} 44. Rh6 {[%emt 0:00:04]} c5 $2 {[%emt 0:00:30]} (44... Rg2+ 45. Kc1 c5 46. Rxg6+ Rxg6 47. Bxg6 cxd4 48. cxd4 Ke7) 45. Bf2 {[%emt 0:00:29]} ({Less strong is} 45. Bxg6 Rg2+ 46. Kc1 cxd4 $14) 45... Rg2 {[%emt 0:00:54][%cal Oc4e5] [#] Strongly threatening ...Nce5!} 46. Rxg6+ {[%emt 0:00:10]} Rxg6 {[%emt 0:00:28]} 47. Bxg6 {[%emt 0:00:01]} b4 {[%emt 0:00:38]} 48. cxb4 {[%emt 0:01:26] White mates.} cxb4 {[%emt 0:00:04]} 49. Bd4 {[%emt 0:00:04]} Na3+ {[%emt 0:00:59]} 50. Kb3 {[%emt 0:00:25]} Nb5 {[%emt 0:00:28]} 51. Kc4 {[%emt 0:00:06]} Nc7 {[%emt 0:00:29]} 52. Kxb4 {[%emt 0:00:13]} Ne6 {[%emt 0:00:29]} 53. Kc4 {[%emt 0:00:06]} Nd8 {[%emt 0:00:28]} 54. Bf5 {[%emt 0:00:15]} Nf7 {[%emt 0:00:14]} 55. Bf6 {[%emt 0:03:46] Weighted Error Value: White=0.07 (flawless) /Black=0.29 (precise) .  Loses game:     	---       	Black=2      Mistake:       	---       	Black=2      Inaccurate:     	White=4     	Black=5      OK:         	White=9     	Black=14     Best:        	White=3     	Black=3      Strong:       	White=1     	Black=1} 1-0

[Event "Baku Open 2024"]
[Site "Baku"]
[Date "2024.06.29"]
[Round "1.14"]
[White "Yeletsky, Ivan"]
[Black "Guliev, Sarhan"]
[Result "1-0"]
[ECO "D30"]
[WhiteElo "2498"]
[BlackElo "2224"]
[Annotator "TA"]
[PlyCount "69"]
[EventDate "2024.06.29"]
[EventType "swiss"]
[EventCountry "AZE"]
[SourceTitle "playchess.com"]
[Source "ChessBase"]
[SourceQuality "1"]
[TimeControl "5400+30"]

{[%evp 18,69,41,44,53,63,57,65,56,64,55,65,86,78,87,84,102,67,88,77,117,33,39,-10,38,34,28,39,43,43,42,54,94,83,173,181,195,162,187,196,185,192,186,177,294,257,303,289,729,721,29988,29989,29989,29990]} 1. d4 {[%emt 0:00:04]} d5 {[%emt 0:01:25]} 2. c4 {[%emt 0:00:15]} e6 {[%emt 0:00:03]} 3. Nf3 {[%emt 0:00:39]} c5 {[%emt 0:00:10]} 4. cxd5 {[%emt 0:00:57]} exd5 {[%emt 0:01:51]} 5. g3 {[%emt 0:01:26]} Nc6 {[%emt 0:00:14]} 6. Bg2 {[%emt 0:00:17]} Nf6 {[%emt 0:00:09]} 7. O-O {[%emt 0:00:38]} Be7 {[%emt 0:01:07]} 8. dxc5 {[%emt 0:00:43]} Bxc5 {[%emt 0:01:04]} 9. a3 {[%emt 0:00:51]} O-O {[%emt 0:01:24]} 10. b4 {[%emt 0:00:30]} Bb6 {[%emt 0:00:43]} 11. Nc3 {[%emt 0:02:04]} h6 {[%emt 0:08:50] Against Bg5} 12. Na4 {[%emt 0:02:21]} Re8 {[%emt 0:04:16] White is slightly better.} 13. Nxb6 {[%emt 0:04:45]} axb6 {[%emt 0:01:47]} 14. Bb2 {[%emt 0:00:18]} Bg4 {[%emt 0:01:34]} 15. Rc1 {[%emt 0:11:18]} Ne4 {[%emt 0:05:57]} 16. Nd4 {[%emt 0:01:25] Strongly threatening f3.} Bd7 {[%emt 0:01:28]} 17. Nc2 {[%emt 0:13:35]} Qg5 {[%emt 0:07:37]} 18. h4 {[%emt 0:02:00]} Qh5 {[%emt 0:03:04]} 19. e3 {[%emt 0:01:26]} ({White should play} 19. b5 $1 $16 {[%cal Rb5c6]}) 19... Qf5 $14 {[%emt 0:07:59] [#]} 20. g4 {[%emt 0:16:56]} Qg6 {[%emt 0:04:33]} (20... Qxg4 $2 21. Qxg4 (21. Qxd5 Nf6 $11) (21. f3 Qxh4 22. fxe4 Bg4 $18) 21... Bxg4 22. f3 $18) (20... Qe6 $1 $11) 21. f3 {[%emt 0:01:20][%cal Oh4h5] And now h5! would win.} Nf6 {[%emt 0:01:56]} 22. Rf2 {[%emt 0:04:36]} Ne5 {[%emt 0:13:48]} 23. Bxe5 {[%emt 0:01:02]} Rxe5 {[%emt 0:00:02]} 24. Qd4 $36 {[%emt 0:11:58][%mdl 2048] White has some pressure.} Rae8 {[%emt 0:01:50][%cal Ba8e8,Be8e2,Be2a2][%mdl 32] [#]} 25. h5 $1 {[%emt 0:00:23]} (25. Qxb6 Ba4 $11) 25... Nxh5 {[%emt 0:04:28]} 26. f4 $1 $18 {[%emt 0:01:12]} (26. gxh5 Rxh5 27. Ne1 Bb5 $16) 26... Nxf4 {[%emt 0:08:36]} 27. exf4 {[%emt 0:05:11]} (27. Qxf4 Rg5 $11) (27. Rxf4 $6 Rg5 $16) 27... Re2 {[%emt 0:02:21]} 28. Rxe2 {[%emt 0:03:41]} (28. Bxd5 $2 Qxg4+ 29. Kh1 (29. Rg2 $2 Rxg2+ 30. Bxg2 Bc6 $19) 29... Rxf2 30. Qxf2 Re2 $19 (30... Qh5+ $2 31. Kg1 $19)) (28. Qxd5 Bc6 29. Qf5 Rxf2 30. Kxf2 Qd6 31. Bxc6 Qd2+ 32. Kf3 bxc6 $11) 28... Rxe2 {[%emt 0:00:02]} 29. Ne3 {[%emt 0:00:34][%cal Bc2e3,Be3d5,Bd5e7][%mdl 32]} (29. Qxd5 Bc6 (29... Qxg4 $2 30. Qf3 $18) 30. Qd8+ Kh7 31. Bxc6 bxc6 $11 (31... Rxc2 $2 32. Rxc2 Qxc2 33. Bf3 $18)) 29... Bxg4 {[%emt 0:01:39]} 30. Kf1 {[%emt 0:01:10]} (30. Nxd5 $2 Bh3 $19) 30... Qe6 {[%emt 0:01:09]} (30... Qh5 {was necessary.}) 31. Re1 {[%emt 0:06:18] Active counter play!} (31. Nxd5 Bh5 $18) 31... Ra2 {[%emt 0:05:07]} 32. Nxd5 {[%emt 0:02:12]} (32. Bxd5 Bh3+ 33. Kg1 Qg6+ 34. Kh1 Bf5 $16) 32... Be2+ $2 {[%emt 0:02:17]} (32... Qd7 33. Re7 (33. Qxb6 $2 Bh3 $19) 33... Qc8) 33. Kg1 {[%emt 0:00:13]} Qg4 {[%emt 0:07:23]} 34. Ne7+ {[%emt 0:00:31]} (34. Nxb6 Bf1 35. Re8+ Kh7 36. Qe4+ f5 $15) 34... Kh7 {[%emt 0:00:29] [#]} 35. Qd8 $1 {[%emt 0:00:15] Weighted Error Value: White=0.10 (very precise) /Black=0.54.  Mistake:       	White=2     	Black=4      Inaccurate:     	White=1     	Black=3      OK:         	White=13    	Black=7      Best:        	White=3     	---        Strong:       	White=1     	---} (35. Qxb6 $2 {loses.} Bf1 $19 (35... Rxa3 36. Qd8) (35... Bf3 $2 36. Qf2 $19) (35... Rxa3 36. Qd8) (35... Bf3 $2 36. Qf2 $19)) 1-0

[Event "Baku Open 2024"]
[Site "Baku"]
[Date "2024.06.29"]
[Round "1.15"]
[White "Amangeldy, Ernur"]
[Black "Shyam, Sundar M."]
[Result "0-1"]
[ECO "C87"]
[WhiteElo "2223"]
[BlackElo "2493"]
[Annotator "TA"]
[PlyCount "70"]
[EventDate "2024.06.29"]
[EventType "swiss"]
[EventCountry "AZE"]
[SourceTitle "playchess.com"]
[Source "ChessBase"]
[SourceQuality "1"]
[TimeControl "5400+30"]

{[%evp 17,70,37,31,32,41,0,54,43,47,49,58,15,48,-23,10,-81,-94,-88,-81,-70,-97,-97,-95,-100,-93,-111,-113,-111,-84,-100,-79,-87,-109,-84,-79,-128,-147,-127,-141,-142,-109,-156,-89,-103,0,-179,-158,-171,-158,-233,-252,-458,-458,-29992,-29993]} 1. e4 {[%emt 1:31:00]} e5 {[%emt 1:31:00]} 2. Nf3 {[%emt 0:00:30]} Nc6 {[%emt 0:00:30]} 3. Bb5 {[%emt 0:00:30]} a6 {[%emt 0:00:30]} 4. Ba4 {[%emt 0:00:30]} Nf6 {[%emt 0:00:30]} 5. O-O {[%emt 0:00:30]} Be7 {[%emt 0:00:30]} 6. Re1 {[%emt 0:00:30]} d6 {[%emt 0:00:30]} 7. Bxc6+ {[%emt 0:00:30]} bxc6 {[%emt 0:00:30]} 8. d4 {[%emt 0:00:30]} Nd7 {[%emt 0:00:30]} 9. dxe5 {[%emt 0:00:30]} dxe5 {[%emt 0:00:30]} 10. Nbd2 {[%emt 0:00:30][%cal Bb1d2,Bd2b3,Bb3a5][%mdl 32]} f6 {[%emt 0:00:30]} 11. Nb3 {[%emt 0:00:30]} Nb6 {[%emt 0:00:30]} (11... a5 $11) 12. Qe2 {[%emt 0:00:30] White is slightly better.} O-O {[%emt 0:00:30]} 13. Na5 {[%emt 0:00:30]} Qe8 {[%emt 0:00:30]} 14. Be3 {[%emt 0:00:30]} Bg4 {[%emt 0:00:30]} 15. Red1 {[%emt 0:00:30]} (15. Bd2 $1 $14) 15... Kh8 {[%emt 0:00:30]} 16. a4 {[%emt 0:00:30] [#]} (16. h3 $11 {remains equal.} Bh5 17. g4) 16... f5 $1 $17 {[%emt 0:00:30]} 17. h3 {[%emt 0:00:30]} Bh5 {[%emt 0:00:30]} 18. exf5 {[%emt 0:00:30] Black must now prevent g4.} e4 {[%emt 0:00:30]} 19. g4 {[%emt 0:00:30]} (19. Bxb6 $2 exf3 (19... cxb6 $2 20. Qxe4 bxa5 21. g4 $19) 20. Qe4 cxb6 $19) 19... exf3 {[%emt 0:00:30]} 20. Qxf3 {[%emt 0:00:30][%cal Oa5c6] And now Nxc6! would win.} Bf7 {[%emt 0:00:30] aiming for ...Bd5.} 21. Qxc6 {[%emt 0:00:30] [#]} Nc4 $1 {[%emt 0:00:30][%mdl 512]} 22. Qxe8 {[%emt 0:00:30]} Raxe8 {[%emt 0:00:30]} 23. Nxc4 {[%emt 0:00:30]} Bxc4 {[%emt 0:00:30]} 24. b3 {[%emt 0:00:30]} Be2 {[%emt 0:00:30]} 25. Rd7 {[%emt 0:00:30][%cal Og1g2]} Bf6 $36 {[%emt 0:00:30][%mdl 2048] White is under strong pressure.} 26. Re1 {[%emt 0:00:30]} ({Better is} 26. Bd4) 26... Bf3 {[%emt 0:00:30]} 27. Rxc7 {[%emt 0:00:30]} h5 {[%emt 0:00:30]} 28. Rc4 {[%emt 0:00:30]} ({Don't blunder} 28. g5 $2 Bxg5 29. Kf1 Bf6 $19 (29... Rxf5 $2 30. Bxg5 Rxe1+ 31. Kxe1 $19)) 28... Kg8 {[%emt 0:00:30]} 29. Kf1 {[%emt 0:00:30]} ({White should try} 29. gxh5 Bxh5 30. h4) 29... Bd5 {[%emt 0:00:30] Black is more active. A strong pair of Bishops.} (29... Rc8 $142 {Threatens to win with ...Rxc4.} 30. Rf4 Ba8 31. gxh5 Rxc2) 30. Rc5 {[%emt 0:00:30]} Bf3 {[%emt 0:00:30]} (30... Be4 $17 31. f4 Rc8 32. Rxc8 Rxc8) 31. Rc4 $1 $19 {[%emt 0:00:30]} hxg4 {[%emt 0:00:30]} 32. hxg4 {[%emt 0:00:30]} Rc8 {[%emt 0:00:30]} 33. Rxc8 {[%emt 0:00:30]} (33. Bc5 $17 Rfd8 34. b4) 33... Rxc8 {[%emt 0:00:30]} 34. g5 $2 {[%emt 0:00:30]} (34. Bf4) 34... Bc3 {[%emt 0:00:30][%cal Og8f7] ...Kf7! would now be deadly.} 35. Rc1 {[%emt 0:00:30]} (35. Bb6 $19 Bxe1 36. Kxe1 Rxc2 37. Be3) 35... Kf7 {[%emt 0:00:30] Weighted Error Value: White=0.52/Black=0.17 (very precise) .  Mistake:       	White=7     	Black=3      Inaccurate:     	White=2     	Black=2      OK:         	White=7     	Black=11     Best:        	White=3     	Black=5      Strong:       	White=1     	Black=1} 0-1

[Event "Baku Open 2024"]
[Site "Baku"]
[Date "2024.06.29"]
[Round "1.16"]
[White "Movahed, Sina"]
[Black "Serikbay, Assel"]
[Result "1-0"]
[ECO "B90"]
[WhiteElo "2482"]
[BlackElo "2217"]
[Annotator "RC"]
[PlyCount "118"]
[EventDate "2024.06.29"]
[EventType "swiss"]
[EventCountry "AZE"]
[SourceTitle "playchess.com"]
[Source "ChessBase"]
[SourceQuality "1"]
[TimeControl "5400+30"]

1. e4 {[%emt 0:00:13]} c5 {[%emt 0:00:07]} 2. Nf3 {[%emt 0:00:07]} d6 {[%emt 0:00:05]} 3. d4 {[%emt 0:00:08]} cxd4 {[%emt 0:00:06]} 4. Nxd4 {[%emt 0:00:05]} Nf6 {[%emt 0:00:10]} 5. Nc3 {[%emt 0:00:05]} a6 {[%emt 0:00:09]} 6. Bd3 {[%emt 0:00:06]} e5 {[%emt 0:00:26]} 7. Nde2 {[%emt 0:00:09]} Be7 {[%emt 0:00:40]} 8. O-O {[%emt 0:00:12]} O-O {[%emt 0:00:15]} 9. Ng3 {[%emt 0:00:09]} Be6 {[%emt 0:00:50]} 10. Nd5 {[%emt 0:00:09]} Bxd5 {[%emt 0:01:05]} 11. exd5 {[%emt 0:00:07]} g6 {[%emt 0:00:10]} 12. c4 {[%emt 0:00:10]} Nbd7 {[%emt 0:01:09]} 13. Kh1 {[%emt 0:01:37]} Rc8 {[%emt 0:11:00]} 14. b3 {[%emt 0:02:03]} Re8 {[%emt 0:02:25]} 15. f4 {[%emt 0:00:22]} exf4 {[%emt 0:10:19]} 16. Bxf4 {[%emt 0:00:59]} Bf8 {[%emt 0:14:36]} 17. Qf3 {[%emt 0:03:24]} Qb6 {[%emt 0:10:47]} 18. Rad1 {[%emt 0:16:39]} Bg7 {[%emt 0:03:00]} 19. Bf5 {[%emt 0:01:20]} gxf5 {[%emt 0:28:50]} 20. Nxf5 {[%emt 0:00:13]} Bf8 {[%emt 0:04:29]} 21. Qg3+ {[%emt 0:22:19]} Kh8 {[%emt 0:00:06]} 22. Bh6 {[%emt 0:00:22]} Bxh6 {[%emt 0:02:02]} 23. Nxh6 {[%emt 0:00:03]} Re7 {[%emt 0:05:03]} 24. Rde1 {[%emt 0:00:40]} Rg8 {[%emt 0:02:59]} 25. Nxg8 {[%emt 0:01:08]} Rxe1 {[%emt 0:00:03]} 26. Qxe1 {[%emt 0:00:11]} Kxg8 {[%emt 0:00:18]} 27. Qe7 {[%emt 0:01:17]} Kg7 {[%emt 0:00:25]} 28. h3 {[%emt 0:01:48]} Qb4 {[%emt 0:02:08]} 29. Rf3 {[%emt 0:00:28]} Qd2 {[%emt 0:00:41]} 30. Kh2 {[%emt 0:03:33]} Qd4 {[%emt 0:00:04]} 31. Rg3+ {[%emt 0:02:21]} Kh6 {[%emt 0:00:01]} 32. Qxd6 {[%emt 0:00:21]} Qe5 {[%emt 0:00:32]} 33. Qxe5 {[%emt 0:00:08]} Nxe5 {[%emt 0:00:01]} 34. Kg1 {[%emt 0:01:46]} Ng6 {[%emt 0:01:11]} 35. d6 {[%emt 0:00:35]} Kg7 {[%emt 0:01:13]} 36. b4 {[%emt 0:03:12]} Nd7 {[%emt 0:00:30]} 37. h4 {[%emt 0:01:21]} Kf6 {[%emt 0:00:15]} 38. h5 {[%emt 0:00:08]} Nf4 {[%emt 0:00:44]} 39. Re3 {[%emt 0:00:43]} Ne5 {[%emt 0:00:34]} 40. c5 {[%emt 0:00:07]} Ne6 {[%emt 0:00:19]} 41. a3 {[%emt 0:02:14]} Nd7 {[%emt 0:00:39]} 42. Rf3+ {[%emt 0:00:49]} Kg7 {[%emt 0:00:01]} 43. Kf2 {[%emt 0:00:20]} Ne5 {[%emt 0:00:53]} 44. Rg3+ {[%emt 0:00:32]} Kf6 {[%emt 0:00:35]} 45. Rg8 {[%emt 0:00:16]} Nd7 {[%emt 0:00:31]} 46. Rc8 {[%emt 0:00:43]} Nd4 {[%emt 0:00:30]} 47. Rc7 {[%emt 0:00:13]} Ke6 {[%emt 0:00:21]} 48. Rxb7 {[%emt 0:00:09]} a5 {[%emt 0:00:04]} 49. h6 {[%emt 0:00:48]} axb4 {[%emt 0:00:23]} 50. axb4 {[%emt 0:00:03]} Ne5 {[%emt 0:01:12]} 51. Ke3 {[%emt 0:00:39]} Nc2+ {[%emt 0:00:30]} 52. Kd2 {[%emt 0:00:08]} Nd4 {[%emt 0:00:05]} 53. Kc3 {[%emt 0:00:09]} Kd5 {[%emt 0:00:53]} 54. Rb8 {[%emt 0:01:09]} Nf5 {[%emt 0:00:12]} 55. Re8 {[%emt 0:00:11]} Nd7 {[%emt 0:00:43]} 56. Rd8 {[%emt 0:00:32]} Ne5 {[%emt 0:00:35]} 57. Rc8 {[%emt 0:00:30]} Nxh6 {[%emt 0:00:34]} 58. Rc7 {[%emt 0:00:14]} Ke6 {[%emt 0:00:22]} 59. Re7+ {[%emt 0:00:06]} Kd5 {[%emt 0:00:40]} 1-0